Cogmind - Beta 12 X6 @@@ ROGUE MODE // 2023.02.23 @ 21:59:27 Player: ArabianSandBoa Result: Self-destructed Performance ------------- Evolutions (2) 1000 Regions Visited (5) 1000 Robots Destroyed (40) 200 Value Destroyed (1002) 1002 Prototype IDs (32) 640 Alien Tech Used (0) 0 Bonus (341) 341 TOTAL SCORE: 4183 Bonus ------- Follower Combat Kills 56 Aligned with FarCom 300 Friendly Fire -15 Cogmind --------- Core Integrity 378/550 Matter 252/300 Energy 280/280 System Corruption 0% Temperature Cool (0) Movement Rolling (295) Ox13 Location -8/Materials Parts ------- > --- POWER (1) -------- Heavy Ion Engine > --- PROPULSION (2) --- Compact Wheel > --- UTILITY (6) ------ Humpback Targeting Computer Targeting Computer Targeting Computer Light Armor Plating > --- WEAPON (2) ------- Enhanced Autogun Scythe > --- INVENTORY (35) --- Heavy Ion Engine Sensor Array Assault Rifle Signal Generator Peak State ------------ > --- POWER ------------ Heavy Ion Engine > --- PROPULSION ------- Compact Wheel Improved Flight Unit > --- UTILITY ---------- Humpback Targeting Computer Targeting Computer Targeting Computer Recoil Stabilizer > --- WEAPON ----------- Enhanced Autogun Enhanced Autogun > --- INVENTORY -------- Light Ion Engine Heavy Ion Engine Deuterium Engine Light Nuclear Core Light Nuclear Core Wheel Compact Wheel Improved Heat Sink Improved Heat Sink Improved Heat Sink High-capacity Storage Unit Humpback Compact Matter Pod Sensor Array 0b10 Alert Chip EM Pulse Gun Advanced Beam Rifle Advanced Beam Cannon Advanced Beam Cannon Advanced Beam Cannon Assault Rifle Enhanced Autogun Light Cannon Grenade Launcher Mini Grenade Launcher Plasma Cutter Signal Generator [Rating: 29] Favorites ----------- Power Light Nuclear Core Engine Heavy Ion Engine Power Core Light Nuclear Core Propulsion Compact Wheel Leg Aluminum Leg Wheel Compact Wheel Flight Unit Improved Flight Unit Utility Targeting Computer Device Improved Heat Sink Storage Humpback Processor Targeting Computer Protection Light Armor Plating Weapon Assault Rifle Energy Gun Advanced Beam Rifle Energy Cannon Advanced Beam Cannon Ballistic Gun Assault Rifle Ballistic Cannon Light Cannon Launcher Mini Grenade Launcher Special Weapon Plasma Cutter Slashing Weapon Scythe Build | -11 -10 -10 -10 -9 -8 ------- Run | Jun Mat Min Exi Min Mat Slots Evolved 4 | . . . . . 4 Power . | . . . . . . Propulsion . | . . . . . . Utility 4 | . . . . . 4 Weapon . | . . . . . . Parts Attached 45 | . 7 . . 2 36 Power 4 | . 1 . . . 3 Engine 1 | . . . . . 1 Core 3 | . 1 . . . 2 Reactor . | . . . . . . Propulsion 8 | . 2 . . . 6 Treads . | . . . . . . Leg . | . . . . . . Wheel 7 | . 2 . . . 5 Hover . | . . . . . . Flight 1 | . . . . . 1 Utility 16 | . 3 . . . 13 Device 3 | . 1 . . . 2 Storage 4 | . 2 . . . 2 Processor 3 | . . . . . 3 Hackware . | . . . . . . Protection 6 | . . . . . 6 Artifact . | . . . . . . Weapon 17 | . 1 . . 2 14 Energy Gun 1 | . . . . . 1 Energy Cannon 1 | . . . . . 1 Ballistic Gun 11 | . 1 . . 2 8 Ballistic Cannon 1 | . . . . . 1 Launcher 1 | . . . . . 1 Special Weapon 1 | . . . . . 1 Impact Weapon . | . . . . . . Slashing Weapon 1 | . . . . . 1 Piercing Weapon . | . . . . . . Special Melee Weapon . | . . . . . . Unidentified Prototypes 5 | . . . . . 5 Corrupted Parts 1 | . 1 . . . . System Corruption 7 | . 7 . . . . Parts Lost 20 | . . . . . 20 Power 1 | . . . . . 1 Propulsion 5 | . . . . . 5 Utility 5 | . . . . . 5 Weapon 9 | . . . . . 9 Highest Loss Streak 10 | . . . . . 10 To Critical Strikes . | . . . . . . Average Slot Usage (%) 86 | . 98 100 73 81 84 Engine 2 | . . . . . 5 Core 8 | . 13 14 14 14 3 Leg 1 | . 7 . . . . Wheel 20 | . 21 28 28 28 14 Device 9 | . 12 14 14 14 5 Storage 11 | . 14 14 14 14 8 Processor 11 | . . . . . 25 Protection 1 | . . . . . 4 Energy Gun 1 | . 2 . . . 1 Ballistic Gun 15 | . 25 28 1 9 14 Naked Turns . | . . . . . . Heaviest Build 219 | 12 50 50 50 50 219 Greatest Support 32 | 20 26 26 26 26 32 Greatest Overweight (x) 21 | . 1 1 1 1 21 Average Overweight (x) 2 | . . 1 1 1 9 Largest Inventory Capacity 35 | 8 20 20 20 20 35 Average Capacity 24 | 8 12 20 20 20 34 Most Carried 33 | 6 13 13 20 20 33 Average Carried 17 | 6 9 13 15 19 22 Final Capacity 35 | 8 20 20 20 20 35 Final Carried 18 | 6 13 13 18 18 4 Class Distribution -------------------- 55% | Mutant 44% | Hauler-Mutant Dominant Class ---------------- Mutant | -10/Materials Mutant | -10/Mines Mutant | -10/Exiles Mutant | -9/Mines Hauler-Mutant | -8/Materials Resources | -11 -10 -10 -10 -9 -8 ----------- Run | Jun Mat Min Exi Min Mat Matter Collected 1742 | 200 234 . . 573 735 Remotely . | . . . . . . Salvage Created 1463 | . 524 . . 66 873 Parts 82 | . 32 . . 2 48 Haulers Intercepted 5 | . 2 . . . 3 Recyclers Shooed 1 | . . . . . 1 Parts Field Recycled . | . . . . . . Retrieved Matter . | . . . . . . Parts Self-Destructed . | . . . . . . Prevented . | . . . . . . Kills | -11 -10 -10 -10 -9 -8 ------- Run | Jun Mat Min Exi Min Mat Combat Hostiles Destroyed 27 | . 8 . . . 19 Guns 19 | . 8 . . . 11 Cannons 2 | . . . . . 2 AOE 6 | . . . . . 6 Classes Destroyed 9 | . 5 . . . 4 Builder 1 | . . . . . 1 Hauler 5 | . 2 . . . 3 Recycler 3 | . 1 . . 1 1 Operator 1 | . . . . . 1 Watcher 3 | . 2 . . . 1 Swarmer 9 | . 3 . . . 6 Grunt 14 | . 5 . . . 9 Sentry 3 | . . . . . 3 Hunter 1 | . . . . . 1 Best Kill Streak 7 | . 4 . . 1 7 Combat Bots Only 6 | . 3 . . . 6 Max Kills in Single Turn 4 | . 2 . . 1 4 Gunslinging . | . . . . . . Exploded 4 | . . . . . 4 Melee . | . . . . . . Uniques/NPCs Destroyed . | . . . . . . Combat | -11 -10 -10 -10 -9 -8 -------- Run | Jun Mat Min Exi Min Mat Damage Taken 1594 | . 246 . . 8 1340 Core 187 | . 15 . . . 172 Absorbed by Shields . | . . . . . . Core Remaining (%) 97 | 100 . . . 94 . Volleys Fired 123 | . 49 . . 2 72 Largest 2 | . 2 . . 2 2 Hottest 96 | . 60 . . 40 96 Shots Fired 241 | . 98 . . 4 139 Gun 222 | . 98 . . 4 120 Cannon 15 | . . . . . 15 Launcher 4 | . . . . . 4 Special . | . . . . . . Kinetic 215 | . 85 . . 4 126 Thermal 9 | . . . . . 9 Explosive 4 | . . . . . 4 Electromagnetic 13 | . 13 . . . . Robot Hit Streak 17 | . 7 . . 2 17 Robot Miss Streak 5 | . 5 . . 1 2 Penetration Max 1 | . . . . . 1 Secondary Targets 4 | . . . . . 4 Max Gunslinging Chain 1 | . . . . . 1 Shots Hit Robots 162 | . 49 . . 2 111 Core Hits 71 | . 21 . . 2 48 Critical Kills . | . . . . . . Critical Parts Destroyed 2 | . . . . . 2 Critical Strikes 4 | . . . . . 4 Burn 1 | . . . . . 1 Destroy 2 | . . . . . 2 Blast 1 | . . . . . 1 Melee Attacks . | . . . . . . Impact . | . . . . . . Slashing . | . . . . . . Piercing . | . . . . . . Sneak Attacks . | . . . . . . Combat Hostiles . | . . . . . . Follow-up Attacks . | . . . . . . Damage Inflicted 2837 | . 631 . . 41 2165 Guns 2150 | . 631 . . 41 1478 Cannons 203 | . . . . . 203 Explosions 484 | . . . . . 484 Melee . | . . . . . . Ramming . | . . . . . . Kinetic 2124 | . 562 . . 41 1521 Thermal 160 | . . . . . 160 Explosive 484 | . . . . . 484 Electromagnetic 69 | . 69 . . . . Impact . | . . . . . . Slashing . | . . . . . . Piercing . | . . . . . . Highest Corruption 7 | . 7 7 7 7 . Average Corruption 7 | . 7 7 7 7 . Corruption Purged . | . . . . . . Corruption Blocked . | . . . . . . Effects 50 | . 22 4 10 14 . Message Errors 14 | . 7 1 3 3 . Matter Fused 13 | . 2 2 3 6 . Heat Flow Errors 6 | . 3 . 2 1 . Energy Discharges 7 | . 4 . 1 2 . Data Loss (minor) 2 | . 1 . 1 . . Data Loss (major) 3 | . 2 1 . . . Misfires 1 | . 1 . . . . Alerts 3 | . 1 . . 2 . Weapon Failures 1 | . 1 . . . . Overload Shots . | . . . . . . Overflow Damage 38 | . . . . . 38 Projectiles . | . . . . . . Explosions 38 | . . . . . 38 Melee . | . . . . . . Knockbacks . | . . . . . . Impact . | . . . . . . Kinetic . | . . . . . . Secondary . | . . . . . . Self-Inflicted Damage 62 | . . . . . 62 Shots 2 | . . . . . 2 Rammed . | . . . . . . Targets Rammed . | . . . . . . Kicked . | . . . . . . Crushed . | . . . . . . Highest Temperature 254 | . 197 . 254 88 29 Average Temperature 41 | . 58 . 112 56 8 Received Heat Transfer 714 | . 93 . . . 621 Siege Activations . | . . . . . . Robots Corrupted . | . . . . . . Combat Hostiles . | . . . . . . Parts Fried . | . . . . . . Impact Corruptions . | . . . . . . Robots Melted . | . . . . . . Combat Hostiles . | . . . . . . Parts Melted 1 | . . . . . 1 Heat Transferred 370 | . . . . . 370 Parts Sabotaged . | . . . . . . Parts Stolen . | . . . . . . Parts Stripped . | . . . . . . Power Chain Reactions . | . . . . . . Missiles Intercepted . | . . . . . . Alert | -11 -10 -10 -10 -9 -8 ------- Run | Jun Mat Min Exi Min Mat Peak Influence 257 | . 192 33 . 81 257 Initial 33 | . . 33 . . 25 Average 75 | . 88 33 . 10 98 Maximum Alert Level 1 | . . . . . 1 Low Security (%) 95 | 100 100 100 . 100 90 Level 1 4 | . . . . . 9 Level 2 . | . . . . . . Level 3 . | . . . . . . Level 4 . | . . . . . . Level 5 . | . . . . . . High Security . | . . . . . . Max Security . | . . . . . . Squads Dispatched 5 | . 1 . . 1 3 Investigation 2 | . 1 . . 1 . Extermination . | . . . . . . Reinforcement 2 | . . . . . 2 Assault 1 | . . . . . 1 Garrison . | . . . . . . Intercept . | . . . . . . Searches Triggered . | . . . . . . Construction Impeded . | . . . . . . Haulers Reinforced . | . . . . . . Active Scanning Responses . | . . . . . . Cargo Convoy Interrupts . | . . . . . . Stealth | -11 -10 -10 -10 -9 -8 --------- Run | Jun Mat Min Exi Min Mat Distress Signals 3 | . 2 . . . 1 Communications Jammed . | . . . . . . Distress Signals . | . . . . . . Times Spotted 40 | . 11 . . 5 24 Peak Tracking Total 5 | . 5 . . 4 4 Tactical Retreats 3 | . . . . . 3 Traps | -11 -10 -10 -10 -9 -8 ------- Run | Jun Mat Min Exi Min Mat Traps Triggered 2 | . 2 . . . . Indirectly . | . . . . . . Trap Hack Attempts . | . . . . . . Triggered . | . . . . . . Disarmed . | . . . . . . Reprogrammed . | . . . . . . Reused . | . . . . . . Traps Extracted . | . . . . . . Installed . | . . . . . . Triggered . | . . . . . . Machines | -11 -10 -10 -10 -9 -8 ---------- Run | Jun Mat Min Exi Min Mat Machines Disabled 1 | . . . . . 1 Max in Single Turn . | . . . . . . Machines Repaired . | . . . . . . Machines Sabotaged . | . . . . . . Overloaded Fab Kills . | . . . . . . Hacking | -11 -10 -10 -10 -9 -8 --------- Run | Jun Mat Min Exi Min Mat Machines Accessed 10 | . 4 . 1 1 4 Terminals 9 | . 4 . . 1 4 Fabricators . | . . . . . . Repair Stations . | . . . . . . Recycling Units . | . . . . . . Scanalyzers . | . . . . . . Garrison Access . | . . . . . . Total Hacks 34 | . 10 . 1 3 20 Successful 16 | . 4 . 1 . 11 Failed 17 | . 6 . . 3 8 Catastrophic 1 | . . . . . 1 Database Lockouts 1 | . . . . . 1 Manual 21 | . 4 . 1 3 13 Terminals 33 | . 10 . . 3 20 Fabricators . | . . . . . . Repair Stations . | . . . . . . Recycling Units . | . . . . . . Scanalyzers . | . . . . . . Garrison Access . | . . . . . . Terminal Hacks 14 | . 3 . 1 . 10 Robot Analysis 3 | . 1 . . . 2 Prototype ID Bank 2 | . 1 . . . 1 Branch Access Points 1 | . 1 . . . . Terminal Index 1 | . . . . . 1 Locate Traps 2 | . . . . . 2 Registered Components 1 | . . . . . 1 Zone Layout 3 | . . . . . 3 EX-Prototype ID Bank 1 | . . . 1 . . Fabricator Hacks . | . . . . . . Repair Station Hacks . | . . . . . . Recycling Unit Hacks . | . . . . . . Scanalyzer . | . . . . . . Garrison Access Hacks . | . . . . . . Unauthorized Hacks 2 | . 1 . . . 1 Terminals 2 | . 1 . . . 1 Botnet 2 | . 1 . . . 1 Fabricators . | . . . . . . Repair Stations . | . . . . . . Recycling Units . | . . . . . . Scanalyzers . | . . . . . . Garrison Access . | . . . . . . Data Cores Recovered . | . . . . . . Used . | . . . . . . Hacking Detections 9 | . 4 . . 1 4 Full Trace Events 3 | . 2 . . 1 . Feedback Events . | . . . . . . Feedback Blocked . | . . . . . . Robot Schematics Acquired . | . . . . . . Robots Built . | . . . . . . Authchips . | . . . . . . Time . | . . . . . . Total Robot Build Rating . | . . . . . . Part Schematics Acquired . | . . . . . . Parts Built . | . . . . . . Authchips . | . . . . . . Time . | . . . . . . Total Part Build Rating . | . . . . . . Parts Repaired . | . . . . . . Time . | . . . . . . Parts Recycled . | . . . . . . Recycled Matter . | . . . . . . Retrieved Matter . | . . . . . . Retrieved Components . | . . . . . . Parts Scanalyzed . | . . . . . . Part Schematics Acquired . | . . . . . . Parts Damaged . | . . . . . . Bothacking | -11 -10 -10 -10 -9 -8 ------------ Run | Jun Mat Min Exi Min Mat Used RIF Installer . | . . . . . . Robots Hacked . | . . . . . . Non-combat . | . . . . . . Combat . | . . . . . . Robot Hacks Applied . | . . . . . . Relay Couplers Released . | . . . . . . Fabnet Peak Effective % . | . . . . . . Robots Rewired . | . . . . . . Allies Hacked . | . . . . . . Hacks Repelled . | . . . . . . Allies | -11 -10 -10 -10 -9 -8 -------- Run | Jun Mat Min Exi Min Mat Total Allies 3 | . . . . 3 . Largest Group 3 | . . . . 3 2 Highest-Rated Group 40 | . . . . 40 29 Highest-Rated Ally 16 | . . . . 16 16 Total Orders . | . . . . . . Ally Attacks 41 | . . . . 22 19 Total Damage 453 | . . . . 258 195 Kills 4 | . . . . 3 1 Allies Corrupted . | . . . . . . Allies Melted . | . . . . . . Intel | -11 -10 -10 -10 -9 -8 ------- Run | Jun Mat Min Exi Min Mat Robot Analysis Total 3 | . 1 . . . 2 Derelict Logs Recovered 1 | . . . . 1 . Drone Launches . | . . . . . . Drone Recoveries . | . . . . . . Exploration | -11 -10 -10 -10 -9 -8 ------------- Run | Jun Mat Min Exi Min Mat Turns Passed 3154 | 10 763 96 297 575 1413 Spaces Moved 1854 | 9 541 88 279 508 429 Core . | . . . . . . Treads . | . . . . . . Legs 105 | 9 96 . . . . Wheels 1749 | . 445 88 279 508 429 Hover . | . . . . . . Flight . | . . . . . . Fastest Speed 90 | 120 90 105 105 105 105 Average Speed 135 | 120 104 105 105 105 238 Slowest Speed 395 | 120 120 105 105 105 395 Overloaded Moves . | . . . . . . Propulsion Burnouts . | . . . . . . Robots Hopped . | . . . . . . Cave-ins Triggered . | . . . . . . Exploration Rate (%) 53 | 2 88 29 69 95 36 Regions Visited 5 Branch Regions 3 Pre-discovered Areas . | . . . . . . Known Exits Taken 1 | . 1 . . . . Unknown Exits Taken 4 | 1 . 1 1 1 . Scrap Searched 4 | . . . . 4 . Spaces Dug . | . . . . . . Terrain Destroyed 26 | . . . . . 26 Melee . | . . . . . . Projectile . | . . . . . . AOE 26 | . . . . . 26 Terrain Rammed . | . . . . . . Walls Destroyed . | . . . . . . Machines Disabled . | . . . . . . Actions | -11 -10 -10 -10 -9 -8 --------- Run | Jun Mat Min Exi Min Mat Total 2251 | 8 639 91 285 547 681 Wait 169 | . 31 4 . 26 108 Move 1849 | 8 540 87 278 507 429 Hop . | . . . . . . Pick Up 37 | . 8 . 3 6 20 Fast Attach 12 | . 2 . . . 10 Attach 17 | . . . . 2 15 Detach 14 | . . . 2 . 12 Swap 16 | . 5 . . . 11 Drop 14 | . 4 . 2 4 4 Fire 123 | . 49 . . 2 72 Melee . | . . . . . . Ram . | . . . . . . Kick . | . . . . . . Crush . | . . . . . . Escape Stasis . | . . . . . . Rewire . | . . . . . . Trap . | . . . . . . Miscellaneous . | . . . . . . Route ------- -11/Junkyard -10/Materials (discovered 5 exits: [*Mat x3] / *Min x2) -10/Mines -10/Exiles -9/Mines (discovered 2 exits: *Mat x2) -8/Materials (discovered 1 exit: *Fac) History --------- Turn | Location | Event 1 | -11/Junkyard | Discovered new exit (range 3) 11 | -11/Junkyard | Entered Materials 178 | -10/Materials | Discovered new exit (range 7) 258 | -10/Materials | Discovered new exit (range 8) 307 | -10/Materials | Build established: Mutant 359 | -10/Materials | Discovered new exit (range 16) 532 | -10/Materials | Discovered new exit (range 16) 652 | -10/Materials | Identified exit to Mines 660 | -10/Materials | Discovered new exit (range 9) 774 | -10/Materials | Entered Mines 866 | -10/Mines | Deemed a non-threat by the Exiles lab entrance 866 | -10/Mines | Discovered new exit (range 5) 870 | -10/Mines | Entered Exiles 896 | -10/Exiles | Met 8R-AWN 915 | -10/Exiles | Met EX-HEX 947 | -10/Exiles | Met EX-BIN 959 | -10/Exiles | Aligned with FarCom system 960 | -10/Exiles | Given EX-Vault access code 984 | -10/Exiles | Opened EX-Vault 1000 | -10/Exiles | Found 0b10 Alert Chip 1024 | -10/Exiles | Warned to stay clear of 0b10 Research branches 1052 | -10/Exiles | Met EX-DEC 1155 | -10/Exiles | Discovered new exit (range 14) 1167 | -10/Exiles | Left Exiles lab with 0b10 Alert Chip 1167 | -10/Exiles | Entered Mines 1193 | -9/Mines | Assisted by bots powering up and referring to "LRC-V3" 1215 | -9/Mines | Discovered new exit (range 3) 1343 | -9/Mines | Learned 2 Materials zone layouts 1518 | -9/Mines | Met a Derelict testing a Signal Generator 1527 | -9/Mines | Found Signal Generator 1711 | -9/Mines | Discovered new exit (range 6) 1742 | -9/Mines | Entered Materials 1742 | -8/Materials | Accompanied by 2 allies 1742 | -8/Materials | Evolved 4 slots: Utility x4 1743 | -8/Materials | Identified exit to Factory 2014 | -8/Materials | Lost 3 parts (2n1w) 2043 | -8/Materials | Build established: Hauler-Mutant 2102 | -8/Materials | Lost 4 parts (1p1u2w) 2544 | -8/Materials | Central database locked down 3155 | -8/Materials | Self-destructed Last Messages --------------- >>Layout(Zone) Retrieving Zone 4A layout... Downloaded map data. 03149_ Dropped Humpback. 03149_ Adv. Beam Rifle crushed and broken. 03149_ Mni. Grenade Launcher crushed and broken. 03149_ Lgt. Cannon crushed and broken. 03149_ Imp. Flight Unit crushed and broken. 03149_ Grenade Launcher crushed and broken. 03149_ 0b10 Alert Chip crushed and broken. 03149_ Com. Matter Pod crushed and broken. 03149_ Com. Wheel crushed and broken. 03149_ Flak Cannon crushed and broken. 03149_ Hcp. Storage Unit crushed and broken. 03149_ Deuterium Engine crushed and broken. 03151_ Signal Generator broadcasts a burst of procedurally generated transmissions. 03151_ ALERT: Intercepting significant anomalous signal. Dispatching assault force. 03154_ Acquired Signal Generator. Map ----- +----------------------------------------------------+ | ?????????????????????????????????????????????????? | | ?????????????????????????????????????????????????? | | ?????????????????????????????????????????????????? | | ?????????????????????????????????????????????????? | | ?????????????????????????????????????????????????? | | ?????????????????????????????????????????????????? | | ?????????????????????????????????????????????????? | | ?????????????????????????????????????????????????? | | ?????????????????????????????????????????????????? | | ?????????????????????????????????????????????????? | | ?????????????????????????????????????????????????? | | ?????????????????????????????????????????????????? | | ?????????????????????????????????????????????????? | | ?????????????????????????????????????????????????? | | ?????????????????????????????????????????????????? | | ?????????????????????????????????????????????????? | | ??????????????????????????????????#####?#####????? | | ??????????????## ### """ ## ## ] #????? | | ?????????????? # ## ## """ #????? | | ?????????????? ##+###### ## """"" ###### | | ?????????????? #### ## """"" ## | | ?????????????? T ## """"" ## | | ?????????????? #########= """ ## "T" | | ?????????????? ############## ## """ | | ?????????????? #??#!*]![[ # ## | | ??????????????###+#####?#@[*!! ! #+##+########### | | ?????????????? #?#|!** # ^^ | | ?????????????? #?#]""" """ + ^ | | ?????????????? #?#]""" """ # ^^ | | ?????????????? #?#!""" """ ####+########### | | ?????????????? #?# # #?? | | ?????????????? #?# # """ #?? | | ?????????????? #?####"T"####[!! """ #?? | | ?????????????? #????#"""#??#[!! """ #?? | | ?????????????? #????#####??#[! | #?? | | ??????????????#########???????????#############??? | | | | | | | | | | | | | | | | | | | | | | | | | | | | | +----------------------------------------------------+ Best States ------------- Heat Dissipation 45 Energy Generation 14 Energy Capacity 280 Matter Stores 300 Matter Capacity 300 Sight Range 16 Terrain Scan Density 10 Armor Coverage 375 Evasion (%) 55 Targeting Accuracy 15 Recoil Reduction 4 Item Schematics ----------------- None Robot Schematics ------------------ None Fabricated ------------ Nothing Alien Tech Used ----------------- None Achievements -------------- None Challenges ------------ None Game ------ Seed CoreAluminumNetwork Manual? 0 Play Time 00:23:19 Cumulative 371.4 hours Start 2023.02.23 @ 21:35:02 End 2023.02.23 @ 21:59:27 Sessions 1 Manual Loads 0 Difficulty Rogue Special Mode None Game No. 433 Rogue 433 Adventurer 0 Explorer 0 Win Type - Total 0 Types 0/0/0/0/0/0/0/0/0 Lore% 51 Gallery% 74 Achievement% 61 Wizard Run 0 Options --------- ASCII 0 Keyboard 0 Movement Mouse Keybinds 0 Fullscreen 2 Font 24/Smallcaps Map View 76x50 Tactical HUD 1 Map Filters NONE Filters NONE Steam 1 RUN: 9ce3460d-4f87-416e-8f8d-bfd92d36c039